fUST/lending_fUST_20250830
["ID","MTS","AMOUNT","RATE_DAILY","PERIOD"]
[382247604,1756552252020,-480.0,0.00019452,2]
[382247606,1756552252030,-539.36,0.00019452,2]
[382247608,1756552252039,-480.0,0.00019452,2]
[382247610,1756552252049,-761.44,0.00019452,2]
[382247612,1756552252059,-480.0,0.00019452,2]
[382247614,1756552252068,-480.0,0.00019452,2]
[382247616,1756552252078,-620.49,0.00019452,2]
[382247618,1756552252088,-480.0,0.00019452,2]
[382247620,1756552252097,-1421.74,0.00019452,2]
[382247622,1756552252107,-480.0,0.00019452,2]
[382247624,1756552252116,-480.0,0.00019452,2]
[382247626,1756552252125,-480.0,0.00019452,2]
[382247628,1756552252135,-480.0,0.00019452,2]
[382247630,1756552252144,-480.0,0.00019452,2]
[382247632,1756552252154,-480.0,0.00019452,2]
[382247634,1756552252163,-480.0,0.00019452,2]
[382247636,1756552252172,-631.33,0.00019452,2]
[382247638,1756552252183,-858.06,0.00019452,2]
[382247640,1756552252193,-480.0,0.00019452,2]
[382247642,1756552252203,-480.0,0.00019452,2]
[382247644,1756552252212,-480.0,0.00019452,2]
[382247646,1756552252221,-480.0,0.00019452,2]
[382247648,1756552252232,-480.0,0.00019452,2]
[382247650,1756552252241,-1089.22,0.00019452,2]
[382247652,1756552252250,-480.0,0.00019452,2]
[382247654,1756552252260,-321.86864523,0.00019452,2]
[382247656,1756552252269,-571.73,0.00019452,2]
[382247658,1756552252278,-480.0,0.00019452,2]
[382247660,1756552252287,-480.0,0.00019452,2]
[382247662,1756552252297,-996.36,0.00019452,2]
[382247664,1756552252307,-546.67,0.00019452,2]
[382247666,1756552252316,-480.0,0.00019452,2]
[382247668,1756552252326,-480.0,0.00019452,2]
[382247670,1756552252336,-480.0,0.00019452,2]
[382247672,1756552252345,-480.0,0.00019452,2]
[382247674,1756552252355,-480.0,0.00019452,2]
[382247676,1756552252364,-227.29189616,0.00019452,2]
[382247678,1756552252374,-480.0,0.00019452,2]
[382247680,1756552252383,-480.0,0.00019452,2]
[382247682,1756552252392,-480.0,0.00019452,2]
[382247684,1756552252401,-480.0,0.00019452,2]
[382247686,1756552252410,-739.32,0.00019452,2]
[382247688,1756552252419,-480.0,0.00019452,2]
[382247690,1756552252429,-484.81,0.00019452,2]
[382247692,1756552252442,-581.47,0.00019452,2]
[382247694,1756552252452,-480.0,0.00019452,2]
[382247696,1756552252461,-480.0,0.00019452,2]
[382247698,1756552252471,-480.0,0.00019452,2]
[382247700,1756552252481,-480.0,0.00019452,2]
[382247702,1756552252491,-480.0,0.00019452,2]
[382247704,1756552252500,-480.0,0.00019452,2]
[382247706,1756552252509,-1593.65,0.00019452,2]
[382247708,1756552252521,-1095.57,0.00019452,2]
[382247710,1756552252531,-480.0,0.00019452,2]
[382247712,1756552252540,-1623.34,0.00019452,2]
[382247714,1756552252549,-480.0,0.00019452,2]
[382247716,1756552252558,-1498.09,0.00019452,2]
[382247718,1756552252567,-480.0,0.00019452,2]
[382247720,1756552252576,-480.0,0.00019452,2]
[382247722,1756552252585,-480.0,0.00019452,2]
[382247724,1756552252594,-480.0,0.00019452,2]
[382247726,1756552252605,-480.0,0.00019452,2]
[382247728,1756552252614,-480.0,0.00019452,2]
[382247730,1756552252623,-480.0,0.00019452,2]
[382247732,1756552252635,-480.0,0.00019452,2]
[382247734,1756552252650,-480.0,0.00019452,2]
[382247736,1756552252664,-480.0,0.00019452,2]
[382247738,1756552252677,-480.0,0.00019452,2]
[382247740,1756552252691,-535.46,0.00019452,2]
[382247742,1756552252701,-480.0,0.00019452,2]
[382247744,1756552252710,-480.0,0.00019452,2]
[382247746,1756552252719,-480.0,0.00019452,2]
[382247748,1756552252728,-480.0,0.00019452,2]
[382247750,1756552252737,-480.0,0.00019452,2]
[382247752,1756552252747,-481.99166166,0.00019452,2]
[382247754,1756552252757,-480.0,0.00019452,2]
[382247756,1756552252767,-480.0,0.00019452,2]
[382247758,1756552252776,-1564.33,0.00019452,2]
[382247760,1756552252786,-655.37,0.00019452,2]
[382247762,1756552252796,-481.98333524,0.00019452,2]
[382247764,1756552252805,-480.0,0.00019452,2]
[382247766,1756552252814,-480.0,0.00019452,2]
[382247768,1756552252825,-480.15,0.00019452,2]
[382247770,1756552252834,-1654.79,0.00019452,2]
[382247772,1756552252843,-480.0,0.00019452,2]
[382247774,1756552252852,-480.0,0.00019452,2]
[382247776,1756552252862,-480.0,0.00019452,2]
[382247777,1756552252871,-480.0,0.00019452,2]
[382247778,1756552252881,-495.88,0.00019452,2]
[382247779,1756552252890,-480.0,0.00019452,2]
[382247780,1756552252899,-480.0,0.00019452,2]
[382247781,1756552252908,-480.0,0.00019452,2]
[382247782,1756552252918,-480.0,0.00019452,2]
[382247783,1756552252927,-806.22,0.00019452,2]
[382247784,1756552252936,-480.0,0.00019452,2]
[382247785,1756552252945,-1408.65,0.00019452,2]
[382247786,1756552252954,-480.0,0.00019452,2]
[382247787,1756552252964,-608.18,0.00019452,2]
[382247789,1756552252973,-829.77,0.00019452,2]
[382247791,1756552252983,-480.0,0.00019452,2]
[382247793,1756552252992,-527.64,0.00019452,2]
[382247795,1756552253002,-480.0,0.00019452,2]
[382247797,1756552253011,-1184.03,0.00019452,2]
[382247799,1756552253021,-480.0,0.00019452,2]
[382247801,1756552253030,-480.0,0.00019452,2]
[382247803,1756552253040,-1502.98,0.00019452,2]
[382247805,1756552253049,-480.0,0.00019452,2]
[382247807,1756552253058,-480.0,0.00019452,2]
[382247809,1756552253068,-480.0,0.00019452,2]
[382247811,1756552253078,-210.35,0.00019452,2]
[382247813,1756552253087,-161.94451285,0.00019452,2]
[382247815,1756552253097,-480.0,0.00019452,2]
[382247817,1756552253106,-480.0,0.00019452,2]
[382247819,1756552253115,-480.0,0.00019452,2]
[382247821,1756552253125,-480.0,0.00019452,2]
[382247823,1756552253134,-493.98,0.00019452,2]
[382247825,1756552253144,-480.0,0.00019452,2]
[382247827,1756552253154,-480.0,0.00019452,2]
[382247829,1756552253163,-480.0,0.00019452,2]
[382247831,1756552253173,-516.7366104,0.00019452,2]
[382247833,1756552253183,-524.01,0.00019452,2]
[382247835,1756552253193,-1000.44,0.00019452,2]
[382247837,1756552253202,-480.0,0.00019452,2]
[382247839,1756552253211,-480.0,0.00019452,2]
[382247841,1756552253220,-480.0,0.00019452,2]
[382247843,1756552253230,-480.0,0.00019452,2]
[382247845,1756552253239,-311.54081522,0.00019452,2]
[382247847,1756552253248,-480.0,0.00019452,2]
[382247849,1756552253258,-480.0,0.00019452,2]
[382247851,1756552253267,-480.0,0.00019452,2]
[382247853,1756552253276,-480.0,0.00019452,2]
[382247855,1756552253285,-481.54541303,0.00019452,2]
[382247857,1756552253295,-480.0,0.00019452,2]
[382247859,1756552253305,-480.0,0.00019452,2]
[382247861,1756552253314,-480.0,0.00019452,2]
[382247863,1756552253323,-480.0,0.00019452,2]
[382247865,1756552253333,-246.76657049,0.00019452,2]
[382247867,1756552253342,-480.0,0.00019452,2]
[382247869,1756552253351,-480.0,0.00019452,2]
[382247871,1756552253360,-514.88368604,0.00019452,2]
[382247873,1756552253369,-249.86391873,0.00019452,2]
[382247875,1756552253379,-1468.8,0.00019452,2]
[382247877,1756552253388,-480.0,0.00019452,2]
[382247879,1756552253398,-480.0,0.00019452,2]
[382247881,1756552253407,-480.0,0.00019452,2]
[382247883,1756552253416,-480.0,0.00019452,2]
[382247885,1756552253426,-481.15793643,0.00019452,2]
[382247887,1756552253440,-480.0,0.00019452,2]
[382247889,1756552253450,-658.8,0.00019452,2]
[382247891,1756552253460,-687.07,0.00019452,2]
[382247893,1756552253469,-480.0,0.00019452,2]
[382247895,1756552253478,-480.0,0.00019452,2]
[382247897,1756552253489,-480.0,0.00019452,2]
[382247899,1756552253498,-480.0,0.00019452,2]
[382247901,1756552253507,-480.0,0.00019452,2]
[382247904,1756552253520,-1515.47,0.00019452,2]
[382247906,1756552253533,-480.0,0.00019452,2]
[382247908,1756552253543,-480.0,0.00019452,2]
[382247910,1756552253554,-1050.64,0.00019452,2]
[382247912,1756552253563,-480.0,0.00019452,2]
[382247914,1756552253573,-1230.04,0.00019452,2]
[382247916,1756552253583,-480.0,0.00019452,2]
[382247918,1756552253593,-488.42,0.00019452,2]
[382247920,1756552253603,-480.0,0.00019452,2]
[382247922,1756552253612,-480.0,0.00019452,2]
[382247924,1756552253621,-812.59,0.00019452,2]
[382247926,1756552253631,-480.0,0.00019452,2]
[382247928,1756552253640,-480.0,0.00019452,2]
[382247929,1756552253649,-767.39,0.00019452,2]
[382247931,1756552253659,-480.0,0.00019452,2]
[382247934,1756552253668,-480.0,0.00019452,2]
[382247936,1756552253678,-490.16666737,0.00019452,2]
[382247938,1756552253687,-480.0,0.00019452,2]
[382247940,1756552253696,-480.0,0.00019452,2]
[382247942,1756552253705,-820.59,0.00019452,2]
[382247944,1756552253714,-552.54,0.00019452,2]
[382247946,1756552253723,-488.94996331,0.00019452,2]
[382247948,1756552253732,-1451.95,0.00019452,2]
[382247950,1756552253741,-480.0,0.00019452,2]
[382247952,1756552253751,-706.25,0.00019452,2]
[382247954,1756552253761,-1252.37,0.00019452,2]
[382247956,1756552253771,-480.0,0.00019452,2]
[382247958,1756552253780,-480.0,0.00019452,2]
[382247960,1756552253789,-1168.66,0.00019452,2]
[382247962,1756552253799,-480.0,0.00019452,2]
[382247964,1756552253808,-994.02,0.00019452,2]
[382247966,1756552253817,-480.0,0.00019452,2]
[382247968,1756552253826,-480.0,0.00019452,2]
[382247970,1756552253835,-480.0,0.00019452,2]
[382247972,1756552253843,-480.0,0.00019452,2]
[382247974,1756552253853,-1119.41,0.00019452,2]
[382247976,1756552253862,-480.0,0.00019452,2]
[382247978,1756552253871,-524.74590697,0.00019452,2]
[382247980,1756552253880,-480.0,0.00019452,2]
[382247982,1756552253889,-480.0,0.00019452,2]
[382247984,1756552253898,-578.86,0.00019452,2]
[382247986,1756552253908,-686.69,0.00019452,2]
[382247988,1756552253917,-480.0,0.00019452,2]
[382247989,1756552253927,-480.0,0.00019452,2]
[382247991,1756552253936,-480.0,0.00019452,2]
[382247993,1756552253946,-1249.36,0.00019452,2]
[382247995,1756552253955,-481.26834988,0.00019452,2]
[382247998,1756552253965,-1487.98,0.00019452,2]
[382248000,1756552253975,-480.0,0.00019452,2]
[382248001,1756552253984,-480.0,0.00019452,2]
[382248003,1756552253993,-480.0,0.00019452,2]
[382248005,1756552254002,-480.0,0.00019452,2]
[382248008,1756552254012,-659.07,0.00019452,2]
[382248009,1756552254022,-924.38,0.00019452,2]
[382248011,1756552254032,-480.0,0.00019452,2]
[382248014,1756552254043,-480.0,0.00019452,2]
[382248016,1756552254052,-480.0,0.00019452,2]
[382248018,1756552254062,-480.0,0.00019452,2]
[382248020,1756552254072,-480.0,0.00019452,2]
[382248022,1756552254081,-480.0,0.00019452,2]
[382248024,1756552254091,-488.0,0.00019452,2]
[382248026,1756552254100,-633.58,0.00019452,2]
[382248028,1756552254110,-1171.25,0.00019452,2]
[382248030,1756552254119,-480.0,0.00019452,2]
[382248032,1756552254128,-790.26,0.00019452,2]
[382248034,1756552254138,-600.82,0.00019452,2]
[382248036,1756552254147,-480.0,0.00019452,2]
[382248052,1756552254289,-480.0,0.00019452,2]
[382248054,1756552254299,-480.0,0.00019452,2]
[382248056,1756552254308,-481.77385395,0.00019452,2]
[382248058,1756552254318,-482.67282792,0.00019452,2]
[382248060,1756552254327,-579.87,0.00019452,2]
[382248062,1756552254337,-480.0,0.00019452,2]
[382248064,1756552254346,-1320.49,0.00019452,2]
[382248066,1756552254355,-480.0,0.00019452,2]
[382248068,1756552254364,-480.0,0.00019452,2]
[382248070,1756552254374,-480.0,0.00019452,2]
[382248072,1756552254384,-480.0,0.00019452,2]
[382248074,1756552254393,-480.0,0.00019452,2]
[382248076,1756552254402,-480.0,0.00019452,2]
[382248078,1756552254412,-480.0,0.00019452,2]
[382248080,1756552254421,-480.0,0.00019452,2]
[382248082,1756552254430,-480.0,0.00019452,2]
[382248084,1756552254448,-1243.7,0.00019452,2]
[382248086,1756552254457,-1000.0,0.00019452,2]
[382248088,1756552254467,-480.0,0.00019452,2]
[382248090,1756552254477,-480.0,0.00019452,2]
[382248092,1756552254487,-505.17006146,0.00019452,2]
[382248094,1756552254496,-558.39,0.00019452,2]
[382248096,1756552254505,-527.77,0.00019452,2]
[382248098,1756552254516,-480.0,0.00019452,2]
[382248100,1756552254526,-157.24216291,0.00019452,2]
[382248103,1756552254535,-480.0,0.00019452,2]
[382248105,1756552254545,-1908.52,0.00019452,2]
[382248107,1756552254554,-480.0,0.00019452,2]
[382248109,1756552254563,-480.0,0.00019452,2]
[382248111,1756552254572,-199.83275968,0.00019452,2]
[382248113,1756552254581,-599.94,0.00019452,2]
[382248115,1756552254592,-481.9960203,0.00019452,2]
[382248117,1756552254602,-1011.57,0.00019452,2]
[382248119,1756552254611,-480.0,0.00019452,2]
[382248121,1756552254619,-480.0,0.00019452,2]
[382248123,1756552254628,-480.0,0.00019452,2]
[382248125,1756552254638,-480.0,0.00019452,2]
[382248127,1756552254647,-480.0,0.00019452,2]
[382248129,1756552254656,-534.59,0.00019452,2]
[382248131,1756552254665,-518.12,0.00019452,2]
[382248133,1756552254674,-480.0,0.00019452,2]
[382248135,1756552254683,-480.0,0.00019452,2]
[382248137,1756552254693,-1426.93,0.00019452,2]
[382248139,1756552254702,-480.0,0.00019452,2]
[382248141,1756552254711,-480.0,0.00019452,2]
[382248143,1756552254721,-480.0,0.00019452,2]
[382248145,1756552254731,-480.0,0.00019452,2]
[382248147,1756552254740,-480.0,0.00019452,2]
[382248149,1756552254749,-480.0,0.00019452,2]
[382248151,1756552254758,-480.0,0.00019452,2]
[382248153,1756552254767,-480.0,0.00019452,2]
[382248155,1756552254777,-480.0,0.00019452,2]
[382248157,1756552254788,-480.0,0.00019452,2]
[382248159,1756552254797,-480.0,0.00019452,2]
[382248161,1756552254806,-480.0,0.00019452,2]
[382248163,1756552254815,-480.0,0.00019452,2]
[382248165,1756552254825,-480.0,0.00019452,2]
[382248167,1756552254834,-480.0,0.00019452,2]
[382248169,1756552254843,-480.0,0.00019452,2]
[382248171,1756552254852,-480.0,0.00019452,2]
[382248173,1756552254862,-498.04,0.00019452,2]
[382248175,1756552254871,-1402.72,0.00019452,2]
[382248177,1756552254880,-480.0,0.00019452,2]
[382248179,1756552254889,-480.0,0.00019452,2]
[382248181,1756552254899,-480.0,0.00019452,2]
[382248183,1756552254908,-480.0,0.00019452,2]
[382248185,1756552254918,-480.0,0.00019452,2]
[382248187,1756552254927,-480.0,0.00019452,2]
[382248189,1756552254937,-374.54756531,0.00019452,2]
[382248191,1756552254947,-563.16773665,0.00019452,2]
[382248193,1756552254956,-781.88,0.00019452,2]
[382248195,1756552254967,-1321.08,0.00019452,2]
[382248197,1756552254976,-480.0,0.00019452,2]
[382248199,1756552254986,-500.0,0.00019452,2]
[382248201,1756552254995,-480.0,0.00019452,2]
[382248203,1756552255004,-486.38,0.00019452,2]
[382248205,1756552255013,-480.0,0.00019452,2]
[382248207,1756552255023,-1184.14,0.00019452,2]
[382248209,1756552255032,-549.61,0.00019452,2]
[382248211,1756552255041,-744.54,0.00019452,2]
[382248213,1756552255051,-2760.55,0.00019452,2]
[382248215,1756552255060,-480.0,0.00019452,2]
[382248217,1756552255069,-480.0,0.00019452,2]
[382248219,1756552255078,-1580.58,0.00019452,2]
[382248221,1756552255088,-530.29,0.00019452,2]
[382248223,1756552255097,-1319.44,0.00019452,2]
[382248225,1756552255106,-480.0,0.00019452,2]
[382248227,1756552255116,-1227.7,0.00019452,2]
[382248229,1756552255126,-1565.5,0.00019452,2]
[382248231,1756552255135,-480.0,0.00019452,2]
[382248233,1756552255144,-480.0,0.00019452,2]
[382248235,1756552255153,-480.0,0.00019452,2]
[382248237,1756552255163,-480.0,0.00019452,2]
[382248239,1756552255172,-480.0,0.00019452,2]
[382248241,1756552255182,-480.0,0.00019452,2]
[382248243,1756552255191,-480.0,0.00019452,2]
[382248245,1756552255201,-1424.42,0.00019452,2]
[382248247,1756552255211,-1439.25,0.00019452,2]
[382248249,1756552255221,-2833.44,0.00019452,2]
[382248251,1756552255232,-480.0,0.00019452,2]
[382248254,1756552255243,-480.0,0.00019452,2]
[382248255,1756552255254,-480.0,0.00019452,2]
[382248257,1756552255264,-1716.48,0.00019452,2]
[382248260,1756552255274,-480.0,0.00019452,2]
[382248262,1756552255283,-480.0,0.00019452,2]
[382248264,1756552255292,-480.0,0.00019452,2]
[382248266,1756552255301,-480.0,0.00019452,2]
[382248268,1756552255310,-480.0,0.00019452,2]
[382248269,1756552255320,-480.0,0.00019452,2]
[382248272,1756552255329,-480.0,0.00019452,2]
[382248273,1756552255338,-480.0,0.00019452,2]
[382248275,1756552255347,-563.68,0.00019452,2]
[382248278,1756552255357,-721.22,0.00019452,2]
[382248280,1756552255366,-480.0,0.00019452,2]
[382248282,1756552255376,-480.0,0.00019452,2]
[382248284,1756552255385,-558.61,0.00019452,2]
[382248286,1756552255395,-485.77055894,0.00019452,2]
[382248288,1756552255404,-480.0,0.00019452,2]
[382248290,1756552255414,-523.48,0.00019452,2]
[382248292,1756552255423,-480.0,0.00019452,2]
[382248294,1756552255435,-480.0,0.00019452,2]
[382248296,1756552255447,-591.05,0.00019452,2]
[382248298,1756552255456,-480.0,0.00019452,2]
[382248300,1756552255465,-480.0,0.00019452,2]
[382248302,1756552255478,-480.0,0.00019452,2]
[382248304,1756552255487,-480.0,0.00019452,2]
[382248306,1756552255497,-1225.41,0.00019452,2]
[382248308,1756552255507,-560.59,0.00019452,2]
[382248310,1756552255518,-480.0,0.00019452,2]
[382248312,1756552255528,-3011.45,0.00019452,2]
[382248314,1756552255538,-480.0,0.00019452,2]
[382248316,1756552255547,-480.0,0.00019452,2]
[382248318,1756552255556,-1491.86,0.00019452,2]
[382248320,1756552255566,-480.0,0.00019452,2]
[382248322,1756552255576,-1336.8,0.00019452,2]
[382248324,1756552255586,-480.0,0.00019452,2]
[382248326,1756552255596,-480.0,0.00019452,2]
[382248328,1756552255607,-1408.64,0.00019452,2]
[382248330,1756552255616,-491.54,0.00019452,2]
[382248332,1756552255625,-480.0,0.00019452,2]
[382248334,1756552255635,-480.0,0.00019452,2]
[382248336,1756552255645,-480.0,0.00019452,2]
[382248338,1756552255654,-629.6,0.00019452,2]
[382248340,1756552255663,-581.96,0.00019452,2]
[382248342,1756552255672,-480.0,0.00019452,2]
[382248344,1756552255681,-480.0,0.00019452,2]
[382248346,1756552255690,-480.0,0.00019452,2]
[382248348,1756552255699,-582.21,0.00019452,2]
[382248350,1756552255708,-480.0,0.00019452,2]
[382248352,1756552255717,-630.86,0.00019452,2]
[382248354,1756552255726,-485.34547028,0.00019452,2]
[382248355,1756552255735,-2801.83,0.00019452,2]
[382248358,1756552255745,-480.0,0.00019452,2]
[382248360,1756552255754,-1243.58,0.00019452,2]
[382248362,1756552255763,-480.0,0.00019452,2]
[382248364,1756552255772,-499.64,0.00019452,2]
[382248366,1756552255781,-480.0,0.00019452,2]
[382248368,1756552255790,-480.0,0.00019452,2]
[382248370,1756552255799,-1461.61,0.00019452,2]
[382248372,1756552255808,-480.0,0.00019452,2]
[382248374,1756552255817,-1528.05,0.00019452,2]
[382248376,1756552255826,-925.87,0.00019452,2]
[382248378,1756552255835,-480.0,0.00019452,2]
[382248380,1756552255845,-260.95639491,0.00019452,2]
[382248382,1756552255854,-480.0,0.00019452,2]
[382248384,1756552255863,-480.0,0.00019452,2]
[382248386,1756552255872,-480.0,0.00019452,2]
[382248388,1756552255881,-480.0,0.00019452,2]
[382248390,1756552255890,-967.42,0.00019452,2]
[382248392,1756552255899,-1250.29,0.00019452,2]
[382248394,1756552255908,-480.0,0.00019452,2]
[382248396,1756552255918,-1210.46,0.00019452,2]
[382248398,1756552255927,-1391.75,0.00019452,2]
[382248400,1756552255936,-480.0,0.00019452,2]
[382248402,1756552255945,-480.0,0.00019452,2]
[382248404,1756552255955,-480.0,0.00019452,2]
[382248406,1756552255964,-1346.48,0.00019452,2]
[382248408,1756552255973,-480.0,0.00019452,2]
[382248410,1756552255983,-566.34,0.00019452,2]
[382248411,1756552255992,-719.21,0.00019452,2]
[382248413,1756552256002,-1645.93,0.00019452,2]
[382248415,1756552256011,-480.0,0.00019452,2]
[382248417,1756552256021,-480.0,0.00019452,2]
[382248419,1756552256030,-556.69,0.00019452,2]
[382248421,1756552256039,-480.0,0.00019452,2]
[382248423,1756552256048,-480.0,0.00019452,2]
[382248425,1756552256057,-525.07,0.00019452,2]
[382248427,1756552256066,-547.24,0.00019452,2]
[382248429,1756552256075,-480.0,0.00019452,2]
[382248431,1756552256084,-480.0,0.00019452,2]
[382248433,1756552256094,-1186.11,0.00019452,2]
[382248435,1756552256103,-205.50161992,0.00019452,2]
[382248437,1756552256112,-653.76,0.00019452,2]
[382248439,1756552256122,-480.0,0.00019452,2]
[382248441,1756552256132,-480.0,0.00019452,2]
[382248443,1756552256142,-1302.73,0.00019452,2]
[382248445,1756552256151,-480.0,0.00019452,2]
[382248447,1756552256162,-480.0,0.00019452,2]
[382248449,1756552256172,-480.0,0.00019452,2]
[382248451,1756552256182,-480.0,0.00019452,2]
[382248453,1756552256191,-480.0,0.00019452,2]
[382248455,1756552256200,-480.0,0.00019452,2]
[382248457,1756552256209,-480.0,0.00019452,2]
[382248459,1756552256219,-1520.26,0.00019452,2]
[382248461,1756552256228,-480.0,0.00019452,2]
[382248463,1756552256237,-480.0,0.00019452,2]
[382248465,1756552256246,-480.0,0.00019452,2]
[382248467,1756552256255,-480.0,0.00019452,2]
[382248469,1756552256265,-480.0,0.00019452,2]
[382248471,1756552256274,-1492.7,0.00019452,2]
[382248473,1756552256283,-480.0,0.00019452,2]
[382248475,1756552256292,-1288.25,0.00019452,2]
[382248477,1756552256301,-480.0,0.00019452,2]
[382248479,1756552256311,-703.47,0.00019452,2]
[382248481,1756552256320,-1916.68,0.00019452,2]
[382248483,1756552256329,-480.0,0.00019452,2]
[382248485,1756552256338,-1053.26,0.00019452,2]
[382248487,1756552256347,-480.0,0.00019452,2]
[382248489,1756552256356,-480.70617667,0.00019452,2]
[382248491,1756552256365,-1178.3,0.00019452,2]
[382248493,1756552256375,-1322.47,0.00019452,2]
[382248495,1756552256384,-480.0,0.00019452,2]
[382248497,1756552256393,-480.0,0.00019452,2]
[382248499,1756552256403,-480.0,0.00019452,2]
[382248501,1756552256411,-5010.0,0.00019452,2]
[382248503,1756552256420,-1340.16,0.00019452,2]
[382248505,1756552256430,-1431.31,0.00019452,2]
[382248507,1756552256443,-1412.05,0.00019452,2]
[382248509,1756552256452,-480.0,0.00019452,2]
[382248511,1756552256460,-1650.29,0.00019452,2]
[382248513,1756552256469,-1503.66,0.00019452,2]
[382248515,1756552256479,-480.0,0.00019452,2]
[382248517,1756552256488,-591.53,0.00019452,2]
[382248519,1756552256498,-480.0,0.00019452,2]
[382248521,1756552256507,-482.90913636,0.00019452,2]
[382248523,1756552256519,-632.52,0.00019452,2]
[382248525,1756552256529,-480.0,0.00019452,2]
[382248527,1756552256538,-1745.66,0.00019452,2]
[382248529,1756552256547,-480.0,0.00019452,2]
[382248531,1756552256556,-1291.77,0.00019452,2]
[382248547,1756552256690,-480.0,0.00019452,2]
[382248549,1756552256699,-7719.17,0.00019452,2]
[382248551,1756552256708,-480.0,0.00019452,2]
[382248553,1756552256717,-480.0,0.00019452,2]
[382248555,1756552256727,-480.0,0.00019452,2]
[382248557,1756552256735,-314.36429447,0.00019452,2]
[382248559,1756552256744,-480.0,0.00019452,2]
[382248561,1756552256753,-1065.86,0.00019452,2]
[382248563,1756552256762,-965.88,0.00019452,2]
[382248565,1756552256771,-2006.07,0.00019452,2]
[382248567,1756552256780,-480.0,0.00019452,2]
[382248569,1756552256789,-2151.82,0.00019452,2]
[382248571,1756552256799,-480.0,0.00019452,2]
[382248573,1756552256808,-580.82,0.00019452,2]
[382248575,1756552256817,-5515.28,0.00019452,2]
[382248577,1756552256826,-480.0,0.00019452,2]
[382248579,1756552256835,-565.32,0.00019452,2]
[382248581,1756552256845,-593.92,0.00019452,2]
[382248583,1756552256854,-480.0,0.00019452,2]
[382248585,1756552256863,-704.19,0.00019452,2]
[382248587,1756552256873,-523.6,0.00019452,2]
[382248589,1756552256883,-853.56,0.00019452,2]
[382248591,1756552256892,-1557.9,0.00019452,2]
[382248593,1756552256901,-480.0,0.00019452,2]
[382248595,1756552256910,-480.0,0.00019452,2]
[382248597,1756552256919,-480.0,0.00019452,2]
[382248599,1756552256928,-563.65,0.00019452,2]
[382248601,1756552256938,-480.0,0.00019452,2]
[382248603,1756552256947,-480.0,0.00019452,2]
[382248605,1756552256956,-1980.5,0.00019452,2]
[382248607,1756552256966,-1159.72,0.00019452,2]
[382248609,1756552256975,-1321.71,0.00019452,2]
[382248610,1756552256984,-530.59005889,0.00019452,2]
[382248611,1756552256994,-480.0,0.00019452,2]
[382248612,1756552257003,-494.44365134,0.00019452,2]
[382248613,1756552257012,-480.0,0.00019452,2]
[382248614,1756552257022,-690.5,0.00019452,2]
[382248615,1756552257031,-480.0,0.00019452,2]